fUST/lending_fUST_20250102
["ID","MTS","AMOUNT","RATE_DAILY","PERIOD"]
[347381732,1735748671394,160.0,0.00022623,120]
[347381733,1735748731281,160.0,0.00021943,120]
[347381738,1735748791983,160.0,0.00022317,120]
[347381739,1735748818190,449.6906084,0.00015022,14]
[347381740,1735748833441,449.6906084,0.00015022,14]
[347381742,1735748851260,160.0,0.00023526,120]
[347381746,1735748911831,160.0,0.00023059,120]
[347381749,1735748915119,449.6906084,0.00015022,14]
[347381750,1735748916384,424.57030358,0.0001,7]
[347381772,1735748971325,160.0,0.00023172,120]
[347381810,1735749032018,160.0,0.00022907,120]
[347381814,1735749032050,-166.463239,0.00013833,2]
[347381817,1735749032064,-166.463239,0.00013973,2]
[347381819,1735749032076,-2785.7612358,0.00016551,2]
[347381821,1735749032088,-300.0,0.00016957,2]
[347381823,1735749032101,-2578.56767228,0.00016957,2]
[347382412,1735749038056,-5000.0,0.00016787,14]
[347382413,1735749038071,-4971.43232772,0.00016957,2]
[347382414,1735749038080,-24900.0,0.00016959,2]
[347382416,1735749038089,-449.6906084,0.00016994,2]
[347382418,1735749038099,-392.23258361,0.00017606,2]
[347382421,1735749038108,-182.30222785,0.00017606,2]
[347382424,1735749038117,-160.0,0.00017715,3]
[347382427,1735749038126,-196.28302925,0.00017845,2]
[347382430,1735749038136,-299.76359925,0.00017845,2]
[347382433,1735749038148,-153.0,0.0001803,2]
[347382435,1735749038157,-153.0,0.0001803,2]
[347382437,1735749038174,-153.0,0.0001803,2]
[347382439,1735749038183,-153.0,0.0001803,2]
[347382442,1735749038194,-153.0,0.0001803,2]
[347382445,1735749038203,-153.0,0.0001803,2]
[347382448,1735749038212,-153.0,0.0001803,2]
[347382452,1735749038221,-153.0,0.0001803,2]
[347382455,1735749038230,-153.0,0.0001803,2]
[347382457,1735749038240,-153.0,0.0001803,2]
[347382460,1735749038249,-153.0,0.0001803,2]
[347382462,1735749038259,-153.0,0.0001803,2]
[347382467,1735749038269,-153.0,0.0001803,2]
[347382470,1735749038278,-153.0,0.0001803,2]
[347382473,1735749038288,-153.0,0.0001803,2]
[347382476,1735749038297,-153.0,0.0001803,2]
[347382479,1735749038307,-153.0,0.0001803,2]
[347382482,1735749038317,-153.0,0.0001803,2]
[347382484,1735749038325,-153.0,0.0001803,2]
[347382487,1735749038335,-2091.0,0.00018126,2]
[347382490,1735749038344,-534.0,0.00018126,2]
[347382492,1735749038353,-2323.0,0.00018126,2]
[347382494,1735749038362,-394.0,0.00018126,2]
[347382496,1735749038371,-5164.75756255,0.00018146,2]
[347382498,1735749038381,-589.7,0.00018155,2]
[347382500,1735749038393,-306.9064059,0.00018478,2]
[347382502,1735749038401,-214.2100241,0.00018478,2]
[347382504,1735749038411,-420.0,0.00018522,2]
[347382506,1735749038420,-160.0,0.00018548,4]
[347382508,1735749038429,-303.30286924,0.00018548,5]
[347382510,1735749038438,-173.77,0.000186,2]
[347382512,1735749038447,-618.0,0.000186,2]
[347382514,1735749038456,-167.64111957,0.00018603,2]
[347382516,1735749038465,-153.0,0.0001863,2]
[347382518,1735749038474,-502.871,0.0001874,2]
[347382520,1735749038482,-3861.80868793,0.000188,2]
[347382522,1735749038492,-376.968,0.00018818,2]
[347382524,1735749038501,-214.4412851,0.00018822,2]
[347382526,1735749038511,-167.64111957,0.00018849,2]
[347382528,1735749038520,-363.39808363,0.000189,2]
[347382530,1735749038529,-1039.37377173,0.00018911,2]
[347382532,1735749038538,-10336.52714983,0.00018975,2]
[347382534,1735749038548,-462.8224189,0.00019,2]
[347382536,1735749038557,-302.57643837,0.00019,2]
[347382538,1735749038567,-6090.16513358,0.00019,10]
[347382540,1735749038576,-17428.91455389,0.00019,2]
[347382543,1735749038588,-64912.5960367,0.00019,2]
[347382545,1735749038597,-302.60665372,0.00019,2]
[347382547,1735749038606,-151.0,0.00019063,4]
[347382549,1735749038616,-1326.26434274,0.00019076,2]
[347382551,1735749038625,-1326.26434274,0.00019077,2]
[347382553,1735749038635,-1326.26434274,0.00019077,2]
[347382555,1735749038646,-1326.26434274,0.00019078,2]
[347382557,1735749038657,-1326.26434274,0.00019078,2]
[347382559,1735749038667,-462.16069224,0.00019078,2]
[347382561,1735749038676,-32565.83555518,0.00019078,2]
[347382563,1735749038686,-209.5513995,0.00019096,2]
[347382565,1735749038694,-167.64111957,0.00019096,2]
[347382567,1735749038704,-363.39808352,0.00019108,2]
[347382569,1735749038713,-501.41942562,0.00019173,2]
[347382571,1735749038723,-502.89127344,0.00019173,2]
[347382573,1735749038732,-576.93285536,0.00019173,2]
[347382575,1735749038742,-500.0,0.00019173,2]
[347382577,1735749038751,-501.9506799,0.00019173,2]
[347382579,1735749038760,-447.24459213,0.00019173,2]
[347382581,1735749038770,-500.0,0.00019173,2]
[347382583,1735749038779,-500.0,0.00019173,2]
[347382585,1735749038789,-500.78274738,0.00019173,2]
[347382587,1735749038798,-500.0,0.00019173,2]
[347382589,1735749038808,-187.66425183,0.00019173,2]
[347382591,1735749038817,-500.0,0.00019173,2]
[347382593,1735749038826,-203.46562858,0.00019173,2]
[347382595,1735749038835,-578.5146873,0.00019173,2]
[347382597,1735749038845,-259.95870971,0.00019173,2]
[347382599,1735749038854,-500.0,0.00019173,2]
[347382601,1735749038863,-500.0,0.00019173,2]
[347382602,1735749038873,-536.91689023,0.00019173,2]
[347382605,1735749038882,-500.0,0.00019173,2]
[347382607,1735749038896,-426.06742865,0.00019173,2]
[347382609,1735749038906,-152.18647337,0.00019173,2]
[347382611,1735749038916,-219.68265849,0.00019173,2]
[347382613,1735749038926,-311.93715762,0.00019173,2]
[347382615,1735749038935,-500.0,0.00019173,2]
[347382617,1735749038945,-500.58599813,0.00019173,2]
[347382619,1735749038954,-1601.03558092,0.00019175,2]
[347382621,1735749038963,-512.97638242,0.00019175,2]
[347382623,1735749038973,-500.0,0.00019175,2]
[347382625,1735749038982,-273.30445263,0.00019175,2]
[347382627,1735749038991,-500.0,0.00019175,2]
[347382629,1735749039001,-500.0,0.00019175,2]
[347382631,1735749039010,-500.0,0.00019175,2]
[347382633,1735749039019,-621.16456935,0.00019175,2]
[347382635,1735749039028,-500.0,0.00019175,2]
[347382637,1735749039037,-623.34273011,0.00019175,2]
[347382639,1735749039047,-184.45563189,0.00019175,2]
[347382641,1735749039059,-500.0,0.00019175,2]
[347382643,1735749039069,-500.0,0.00019175,2]
[347382645,1735749039078,-500.0,0.00019175,2]
[347382647,1735749039087,-196.25312902,0.00019175,2]
[347382649,1735749039096,-500.0,0.00019175,2]
[347382651,1735749039106,-500.0,0.00019175,2]
[347382653,1735749039115,-500.0,0.00019175,2]
[347382655,1735749039125,-154.78894101,0.00019175,2]
[347382657,1735749039135,-500.0,0.00019175,2]
[347382659,1735749039147,-500.0,0.00019175,2]
[347382661,1735749039156,-500.0,0.00019175,2]
[347382663,1735749039165,-500.0,0.00019175,2]
[347382665,1735749039175,-500.0,0.00019175,2]
[347382667,1735749039184,-308.0077109,0.00019175,2]
[347382669,1735749039193,-500.0,0.00019175,2]
[347382671,1735749039202,-500.0,0.00019175,2]
[347382673,1735749039212,-500.0,0.00019175,2]
[347382675,1735749039227,-500.0,0.00019175,2]
[347382678,1735749039238,-500.0,0.00019175,2]
[347382680,1735749039247,-500.0,0.00019175,2]
[347382682,1735749039257,-500.0,0.00019175,2]
[347382683,1735749039267,-500.0,0.00019175,2]
[347382685,1735749039277,-500.0,0.00019175,2]
[347382687,1735749039286,-500.0,0.00019175,2]
[347382689,1735749039296,-500.0,0.00019175,2]
[347382691,1735749039306,-500.0,0.00019175,2]
[347382693,1735749039316,-500.0,0.00019175,2]
[347382695,1735749039326,-500.0,0.00019175,2]
[347382710,1735749039459,-331.08084774,0.00019175,2]
[347382712,1735749039470,-500.0,0.00019175,2]
[347382714,1735749039480,-500.0,0.00019175,2]
[347382716,1735749039490,-500.0,0.00019175,2]
[347382718,1735749039499,-500.0,0.00019175,2]
[347382720,1735749039509,-500.0,0.00019175,2]
[347382722,1735749039518,-500.0,0.00019175,2]
[347382724,1735749039528,-500.0,0.00019175,2]
[347382726,1735749039538,-500.0,0.00019175,2]
[347382729,1735749039548,-500.0,0.00019175,2]
[347382731,1735749039558,-500.0,0.00019175,2]
[347382733,1735749039568,-500.0,0.00019175,2]
[347382735,1735749039578,-500.0,0.00019175,2]
[347382737,1735749039588,-500.0,0.00019175,2]
[347382739,1735749039597,-500.0,0.00019175,2]
[347382741,1735749039607,-500.0,0.00019175,2]
[347382743,1735749039616,-500.0,0.00019175,2]
[347382745,1735749039625,-500.0,0.00019175,2]
[347382747,1735749039635,-500.0,0.00019175,2]
[347382749,1735749039647,-500.0,0.00019175,2]
[347382751,1735749039656,-500.0,0.00019175,2]
[347382753,1735749039666,-500.0,0.00019175,2]
[347382755,1735749039675,-500.0,0.00019175,2]
[347382757,1735749039685,-500.0,0.00019175,2]
[347382759,1735749039693,-500.0,0.00019175,2]
[347382761,1735749039703,-500.0,0.00019175,2]
[347382763,1735749039712,-500.0,0.00019175,2]
[347382765,1735749039722,-477.67467452,0.00019175,2]
[347382767,1735749039731,-500.0,0.00019175,2]
[347382769,1735749039741,-500.0,0.00019175,2]
[347382771,1735749039750,-500.0,0.00019175,2]
[347382773,1735749039759,-500.0,0.00019175,2]
[347382775,1735749039769,-500.0,0.00019175,2]
[347382777,1735749039778,-499.99999999,0.00019175,2]
[347382779,1735749039788,-300.0,0.00019175,2]
[347382781,1735749039797,-545.30068096,0.00019177,2]
[347382783,1735749039806,-582.34493158,0.00019177,2]
[347382784,1735749039816,-313.355992,0.00019177,2]
[347382787,1735749039826,-10852.33465489,0.00019178,2]
[347382789,1735749039835,-89589.6512038,0.00019178,2]
[347382790,1735749039845,-500.0,0.00019178,2]
[347382792,1735749039855,-500.0,0.00019178,2]
[347382794,1735749039864,-500.0,0.00019178,2]
[347382796,1735749039874,-500.0,0.00019178,2]
[347382798,1735749039883,-500.0,0.00019178,2]
[347382800,1735749039894,-500.0,0.00019178,2]
[347382802,1735749039905,-503.3161859,0.00019178,2]
[347382804,1735749039915,-500.24047302,0.00019178,2]
[347382806,1735749039926,-320.79362068,0.00019178,2]
[347382808,1735749039935,-500.81546027,0.00019178,2]
[347382810,1735749039945,-500.61682899,0.00019178,2]
[347382812,1735749039954,-558.46825229,0.00019178,2]
[347382814,1735749039963,-500.0,0.00019178,2]
[347382816,1735749039973,-500.0,0.00019178,2]
[347382818,1735749039982,-502.18038305,0.00019178,2]
[347382820,1735749039992,-500.0,0.00019178,2]
[347382823,1735749040002,-500.0,0.00019178,2]
[347382824,1735749040011,-500.0,0.00019178,2]
[347382827,1735749040021,-500.0,0.00019178,2]
[347382829,1735749040031,-500.0,0.00019178,2]
[347382831,1735749040040,-500.0,0.00019178,2]
[347382833,1735749040049,-500.0,0.00019178,2]
[347382835,1735749040059,-500.0,0.00019178,2]
[347382837,1735749040071,-504.10355821,0.00019178,2]
[347382839,1735749040081,-500.0,0.00019178,2]
[347382841,1735749040091,-500.0,0.00019178,2]
[347382843,1735749040100,-10022.87,0.00019178,2]
[347382845,1735749040110,-500.0,0.00019178,2]
[347382847,1735749040119,-502.66470104,0.00019178,2]
[347382849,1735749040128,-500.0,0.00019178,2]
[347382851,1735749040138,-500.47102507,0.00019178,2]
[347382853,1735749040148,-500.0,0.00019178,2]
[347382855,1735749040158,-1903.83,0.00019178,2]
[347382857,1735749040167,-600.06,0.00019178,2]
[347382859,1735749040177,-500.71127326,0.00019178,2]
[347382861,1735749040186,-500.0,0.00019178,2]
[347382863,1735749040195,-500.0,0.00019178,2]
[347382865,1735749040204,-500.0,0.00019178,2]
[347382867,1735749040214,-417.55789877,0.00019178,2]
[347382869,1735749040223,-500.0,0.00019178,2]
[347382871,1735749040233,-500.0,0.00019178,2]
[347382873,1735749040242,-500.0,0.00019178,2]
[347382875,1735749040251,-500.0,0.00019178,2]
[347382877,1735749040261,-500.0,0.00019178,2]
[347382879,1735749040270,-500.0,0.00019178,2]
[347382881,1735749040280,-500.0,0.00019178,2]
[347382883,1735749040290,-500.0,0.00019178,2]
[347382885,1735749040299,-500.0,0.00019178,2]
[347382887,1735749040308,-500.0,0.00019178,2]
[347382889,1735749040318,-501.59012217,0.00019178,2]
[347382891,1735749040328,-500.0,0.00019178,2]
[347382893,1735749040337,-500.0,0.00019178,2]
[347382895,1735749040347,-566.57,0.00019178,2]
[347382897,1735749040357,-500.0,0.00019178,2]
[347382899,1735749040367,-500.0,0.00019178,2]
[347382901,1735749040376,-500.61405082,0.00019178,2]
[347382903,1735749040385,-500.0,0.00019178,2]
[347382905,1735749040399,-500.0,0.00019178,2]
[347382907,1735749040408,-500.0,0.00019178,2]
[347382909,1735749040417,-500.0,0.00019178,2]
[347382911,1735749040427,-500.0,0.00019178,2]
[347382913,1735749040436,-500.0,0.00019178,2]
[347382915,1735749040445,-500.0,0.00019178,2]
[347382917,1735749040454,-541.0,0.00019178,2]
[347382919,1735749040464,-500.0,0.00019178,2]
[347382921,1735749040473,-500.0,0.00019178,2]
[347382923,1735749040482,-500.0,0.00019178,2]
[347382925,1735749040491,-500.0,0.00019178,2]
[347382927,1735749040500,-500.0,0.00019178,2]
[347382929,1735749040510,-500.0,0.00019178,2]
[347382931,1735749040519,-500.0,0.00019178,2]
[347382933,1735749040529,-500.0,0.00019178,2]
[347382935,1735749040538,-500.0,0.00019178,2]
[347382937,1735749040547,-500.0,0.00019178,2]
[347382939,1735749040557,-500.0,0.00019178,2]
[347382941,1735749040567,-500.0,0.00019178,2]
[347382943,1735749040576,-500.0,0.00019178,2]
[347382945,1735749040586,-902.01,0.00019178,2]
[347382947,1735749040595,-311.54460316,0.00019178,2]
[347382949,1735749040604,-500.0,0.00019178,2]
[347382951,1735749040614,-500.0,0.00019178,2]
[347382953,1735749040623,-500.0,0.00019178,2]
[347382955,1735749040633,-500.0,0.00019178,2]
[347382956,1735749040643,-500.0,0.00019178,2]
[347382958,1735749040653,-1660.75,0.00019178,2]
[347382960,1735749040662,-500.0,0.00019178,2]
[347382963,1735749040672,-500.0,0.00019178,2]
[347382965,1735749040682,-500.0,0.00019178,2]
[347382967,1735749040691,-500.0,0.00019178,2]
[347382969,1735749040700,-500.0,0.00019178,2]
[347382970,1735749040710,-500.0,0.00019178,2]
[347382971,1735749040718,-500.0,0.00019178,2]
[347382972,1735749040727,-500.92148755,0.00019178,2]
[347382973,1735749040736,-500.0,0.00019178,2]
[347382974,1735749040746,-508.59994683,0.00019178,2]
[347382975,1735749040755,-500.0,0.00019178,2]
[347382976,1735749040765,-501.49543745,0.00019178,2]
[347382977,1735749040774,-500.0,0.00019178,2]
[347382978,1735749040785,-500.0,0.00019178,2]
[347382979,1735749040795,-500.0,0.00019178,2]
[347382980,1735749040804,-500.0,0.00019178,2]
[347382981,1735749040813,-500.0,0.00019178,2]
[347382982,1735749040822,-500.0,0.00019178,2]
[347382983,1735749040831,-587.48477502,0.00019178,2]
[347382984,1735749040841,-500.0,0.00019178,2]
[347382985,1735749040850,-500.0,0.00019178,2]
[347382986,1735749040859,-503.21414548,0.00019178,2]
[347382987,1735749040868,-509.87657925,0.00019178,2]
[347382988,1735749040878,-500.0,0.00019178,2]
[347382989,1735749040887,-500.0,0.00019178,2]
[347382990,1735749040898,-503.02719017,0.00019178,2]
[347382991,1735749040907,-500.0,0.00019178,2]
[347382992,1735749040916,-500.0,0.00019178,2]
[347382993,1735749040926,-500.0,0.00019178,2]
[347382994,1735749040936,-533.35977347,0.00019178,2]
[347382995,1735749040945,-559.52565334,0.00019178,2]
[347382996,1735749040954,-501.52530935,0.00019178,2]
[347382997,1735749040964,-500.0,0.00019178,2]
[347382998,1735749040973,-500.0,0.00019178,2]
[347382999,1735749040982,-500.0,0.00019178,2]
[347383000,1735749040992,-500.0,0.00019178,2]
[347383001,1735749041001,-500.0,0.00019178,2]
[347383002,1735749041011,-500.0,0.00019178,2]
[347383003,1735749041021,-500.0,0.00019178,2]
[347383004,1735749041031,-727.53,0.00019178,2]
[347383005,1735749041042,-500.0,0.00019178,2]
[347383006,1735749041051,-500.0,0.00019178,2]
[347383007,1735749041061,-379.07618324,0.00019178,2]
[347383008,1735749041086,-120.92381676,0.00019178,2]
[347383009,1735749041095,-500.0,0.00019178,2]
[347383010,1735749041106,-500.0,0.00019178,2]
[347383011,1735749041115,-500.0,0.00019178,2]
[347383012,1735749041126,-500.0,0.00019178,2]
[347383013,1735749041137,-500.0,0.00019178,2]
[347383014,1735749041148,-500.0,0.00019178,2]
[347383015,1735749041158,-500.0,0.00019178,2]
[347383016,1735749041167,-500.0,0.00019178,2]
[347383017,1735749041177,-500.0,0.00019178,2]
[347383018,1735749041186,-500.0,0.00019178,2]
[347383019,1735749041195,-500.0,0.00019178,2]
[347383020,1735749041205,-500.0,0.00019178,2]
[347383021,1735749041215,-500.0,0.00019178,2]
[347383022,1735749041224,-920.15,0.00019178,2]
[347383023,1735749041234,-500.0,0.00019178,2]
[347383024,1735749041243,-500.0,0.00019178,2]
[347383025,1735749041252,-343.57039569,0.00019178,2]
[347383026,1735749041262,-500.0,0.00019178,2]
[347383027,1735749041271,-500.0,0.00019178,2]
[347383028,1735749041281,-500.0,0.00019178,2]
[347383029,1735749041291,-627.85739977,0.00019178,2]
[347383030,1735749041300,-500.0,0.00019178,2]
[347383031,1735749041309,-500.0,0.00019178,2]
[347383032,1735749041318,-500.0,0.00019178,2]
[347383033,1735749041327,-452.69403194,0.00019178,2]
[347383034,1735749041336,-756.22,0.00019178,2]
[347383035,1735749041346,-500.0,0.00019178,2]
[347383036,1735749041355,-500.0,0.00019178,2]
[347383038,1735749041365,-500.0,0.00019178,2]
[347383040,1735749041374,-500.0,0.00019178,2]
[347383041,1735749041383,-501.86890275,0.00019178,2]
[347383042,1735749041393,-500.0,0.00019178,2]
[347383044,1735749041403,-500.0,0.00019178,2]
[347383046,1735749041412,-388.9115591,0.00019178,2]
[347383048,1735749041421,-500.0,0.00019178,2]
[347383049,1735749041430,-1107.5649309,0.00019178,2]
[347383051,1735749041440,-500.0,0.00019178,2]
[347383053,1735749041449,-500.0,0.00019178,2]
[347383055,1735749041459,-500.0,0.00019178,2]
[347383057,1735749041468,-500.0,0.00019178,2]
[347383058,1735749041477,-500.0,0.00019178,2]
[347383060,1735749041486,-500.0,0.00019178,2]
[347383062,1735749041496,-500.0,0.00019178,2]
[347383063,1735749041505,-500.0,0.00019178,2]
[347383065,1735749041514,-500.0,0.00019178,2]
[347383066,1735749041523,-267.59197443,0.00019178,2]
[347383068,1735749041533,-500.0,0.00019178,2]
[347383069,1735749041542,-500.0,0.00019178,2]
[347383070,1735749041551,-500.0,0.00019178,2]
[347383071,1735749041561,-501.86166244,0.00019178,2]
[347383072,1735749041569,-500.0,0.00019178,2]
[347383073,1735749041579,-500.0,0.00019178,2]
[347383074,1735749041589,-500.0,0.00019178,2]
[347383075,1735749041598,-523.74914516,0.00019178,2]
[347383076,1735749041608,-500.0,0.00019178,2]
[347383077,1735749041617,-500.0,0.00019178,2]
[347383078,1735749041627,-500.0,0.00019178,2]
[347383079,1735749041637,-500.0,0.00019178,2]
[347383080,1735749041648,-365.48800625,0.00019178,2]
[347383081,1735749041657,-500.0,0.00019178,2]
[347383082,1735749041666,-500.0,0.00019178,2]
[347383083,1735749041675,-500.0,0.00019178,2]
[347383084,1735749041684,-598.22477138,0.00019178,2]
[347383085,1735749041694,-500.0,0.00019178,2]
[347383086,1735749041703,-500.0,0.00019178,2]
[347383087,1735749041712,-500.0,0.00019178,2]
[347383088,1735749041721,-500.0,0.00019178,2]
[347383089,1735749041731,-500.0,0.00019178,2]
[347383090,1735749041741,-1161.55,0.00019178,2]
[347383091,1735749041750,-531.65011393,0.00019178,2]
[347383092,1735749041759,-500.0,0.00019178,2]
[347383093,1735749041768,-500.0,0.00019178,2]
[347383094,1735749041777,-584.17,0.00019178,2]
[347383095,1735749041787,-500.0,0.00019178,2]
[347383096,1735749041796,-500.0,0.00019178,2]
[347383097,1735749041805,-500.0,0.00019178,2]
[347383098,1735749041814,-500.0,0.00019178,2]
[347383099,1735749041824,-500.0,0.00019178,2]
[347383100,1735749041833,-500.0,0.00019178,2]
[347383101,1735749041842,-500.0,0.00019178,2]
[347383102,1735749041852,-500.87013837,0.00019178,2]
[347383103,1735749041861,-500.0,0.00019178,2]
[347383104,1735749041870,-500.0,0.00019178,2]
[347383105,1735749041995,-500.0,0.00019178,2]
[347383106,1735749042005,-500.0,0.00019178,2]
[347383107,1735749042015,-500.0,0.00019178,2]
[347383108,1735749042024,-500.0,0.00019178,2]
[347383109,1735749042033,-500.0,0.00019178,2]
[347383110,1735749042043,-500.0,0.00019178,2]
[347383111,1735749042052,-500.0,0.00019178,2]
[347383112,1735749042062,-500.0,0.00019178,2]
[347383113,1735749042074,-500.0,0.00019178,2]
[347383114,1735749042083,-500.0,0.00019178,2]
[347383115,1735749042092,-500.0,0.00019178,2]
[347383116,1735749042101,-500.0,0.00019178,2]
[347383117,1735749042110,-500.0,0.00019178,2]
[347383118,1735749042119,-3535.34,0.00019178,2]
[347383119,1735749042128,-500.0,0.00019178,2]
[347383120,1735749042137,-500.0,0.00019178,2]
[347383121,1735749042147,-500.0,0.00019178,2]
[347383122,1735749042157,-500.0,0.00019178,2]
[347383123,1735749042166,-500.0,0.00019178,2]
[347383124,1735749042176,-835.38,0.00019178,2]
[347383125,1735749042186,-500.0,0.00019178,2]
[347383126,1735749042195,-500.0,0.00019178,2]
[347383127,1735749042204,-500.0,0.00019178,2]
[347383128,1735749042214,-500.0,0.00019178,2]
[347383129,1735749042223,-500.0,0.00019178,2]
[347383130,1735749042232,-994.28,0.00019178,2]
[347383131,1735749042241,-500.0,0.00019178,2]
[347383132,1735749042250,-607.95,0.00019178,2]
[347383133,1735749042259,-500.0,0.00019178,2]
[347383134,1735749042268,-500.82931552,0.00019178,2]
[347383135,1735749042278,-500.0,0.00019178,2]
[347383136,1735749042286,-500.0,0.00019178,2]
[347383137,1735749042296,-500.0,0.00019178,2]
[347383138,1735749042305,-247.64425288,0.00019178,2]
[347383139,1735749042315,-500.0,0.00019178,2]
[347383140,1735749042324,-500.0,0.00019178,2]
[347383141,1735749042334,-500.0,0.00019178,2]
[347383142,1735749042343,-500.0,0.00019178,2]
[347383143,1735749042353,-500.0,0.00019178,2]
[347383144,1735749042362,-500.0,0.00019178,2]
[347383145,1735749042371,-500.0,0.00019178,2]
[347383147,1735749042380,-500.0,0.00019178,2]
[347383149,1735749042389,-500.0,0.00019178,2]
[347383150,1735749042402,-500.0,0.00019178,2]
[347383152,1735749042412,-500.0,0.00019178,2]
[347383154,1735749042421,-500.0,0.00019178,2]
[347383156,1735749042430,-500.0,0.00019178,2]
[347383157,1735749042439,-2221.8,0.00019178,2]
[347383158,1735749042449,-514.51,0.00019178,2]
[347383159,1735749042458,-500.0,0.00019178,2]
[347383161,1735749042467,-500.0,0.00019178,2]
[347383163,1735749042476,-504.98892204,0.00019178,2]
[347383164,1735749042485,-500.0,0.00019178,2]
[347383165,1735749042494,-500.0,0.00019178,2]
[347383166,1735749042503,-500.0,0.00019178,2]
[347383167,1735749042512,-500.0,0.00019178,2]
[347383169,1735749042521,-500.0,0.00019178,2]
[347383170,1735749042530,-500.0,0.00019178,2]
[347383171,1735749042539,-501.3182311,0.00019178,2]
[347383172,1735749042548,-563.52,0.00019178,2]
[347383173,1735749042558,-500.0,0.00019178,2]
[347383174,1735749042568,-500.0,0.00019178,2]
[347383175,1735749042577,-500.0,0.00019178,2]
[347383177,1735749042587,-500.31788548,0.00019178,2]
[347383179,1735749042596,-500.0,0.00019178,2]
[347383181,1735749042605,-680.26,0.00019178,2]
[347383183,1735749042615,-500.0,0.00019178,2]
[347383185,1735749042624,-500.0,0.00019178,2]
[347383187,1735749042634,-500.0,0.00019178,2]
[347383189,1735749042643,-500.0,0.00019178,2]
[347383190,1735749042652,-500.0,0.00019178,2]
[347383191,1735749042661,-502.59994726,0.00019178,2]
[347383192,1735749042671,-500.0,0.00019178,2]
[347383193,1735749042680,-500.0,0.00019178,2]
[347383194,1735749042690,-500.0,0.00019178,2]
[347383195,1735749042699,-516.42741851,0.00019178,2]
[347383196,1735749042708,-500.0,0.00019178,2]
[347383197,1735749042718,-500.1747361,0.00019178,2]
[347383198,1735749042727,-500.0,0.00019178,2]
[347383199,1735749042737,-531.40298857,0.00019178,2]
[347383200,1735749042746,-500.0,0.00019178,2]
[347383201,1735749042755,-500.0,0.00019178,2]
[347383202,1735749042765,-561.07658577,0.00019178,2]
[347383203,1735749042774,-500.0,0.00019178,2]
[347383204,1735749042783,-502.27891798,0.00019178,2]
[347383205,1735749042792,-500.0,0.00019178,2]
[347383206,1735749042801,-500.0,0.00019178,2]
[347383207,1735749042810,-500.0,0.00019178,2]
[347383208,1735749042820,-500.0,0.00019178,2]
[347383209,1735749042829,-846.34,0.00019178,2]
[347383210,1735749042838,-1217.97,0.00019178,2]
[347383211,1735749042847,-500.0,0.00019178,2]
[347383212,1735749042856,-500.0,0.00019178,2]
[347383213,1735749042865,-10701.7,0.00019178,2]
[347383214,1735749042874,-500.0,0.00019178,2]
[347383215,1735749042884,-500.0,0.00019178,2]
[347383216,1735749042894,-500.0,0.00019178,2]
[347383217,1735749042904,-500.0,0.00019178,2]
[347383218,1735749042914,-500.0,0.00019178,2]
[347383219,1735749042924,-500.0,0.00019178,2]